fUSD/lending_fUSD_20250514
["ID","MTS","AMOUNT","RATE_DAILY","PERIOD"]
[361093526,1747251043538,-173.32884914,0.00011197,2]
[361093527,1747251043548,-460.25,0.00011197,2]
[361093528,1747251043558,-400.0,0.00011197,2]
[361093529,1747251043569,-450.0,0.00011197,2]
[361093530,1747251043579,-400.0,0.00011197,2]
[361093531,1747251043589,-450.0,0.00011197,2]
[361093532,1747251043599,-656.35,0.00011197,2]
[361093533,1747251043610,-400.0,0.00011197,2]
[361093534,1747251043620,-400.0,0.00011197,2]
[361093535,1747251043630,-400.0,0.00011197,2]
[361093536,1747251043639,-400.0,0.00011197,2]
[361093537,1747251043650,-450.0,0.00011197,2]
[361093538,1747251043660,-400.0,0.00011197,2]
[361093539,1747251043670,-400.0,0.00011197,2]
[361093540,1747251043680,-435.73,0.00011197,2]
[361093541,1747251043690,-400.0,0.00011197,2]
[361093542,1747251043701,-400.0,0.00011197,2]
[361093543,1747251043711,-400.0,0.00011197,2]
[361093544,1747251043721,-400.0,0.00011197,2]
[361093545,1747251043731,-495.54479783,0.00011197,2]
[361093546,1747251043741,-400.0,0.00011197,2]
[361093547,1747251043751,-400.0,0.00011197,2]
[361093548,1747251043760,-400.0,0.00011197,2]
[361093549,1747251043770,-400.0,0.00011197,2]
[361093550,1747251043780,-400.0,0.00011197,2]
[361093551,1747251043789,-400.0,0.00011197,2]
[361093552,1747251043799,-509.77,0.00011197,2]
[361093553,1747251043809,-1243.78,0.00011197,2]
[361093554,1747251043818,-400.0,0.00011197,2]
[361093555,1747251043828,-1015.09,0.00011197,2]
[361093556,1747251043837,-400.0,0.00011197,2]
[361093557,1747251043847,-400.0,0.00011197,2]
[361093558,1747251043858,-400.0,0.00011197,2]
[361093559,1747251043868,-400.0,0.00011197,2]
[361093560,1747251043877,-400.0,0.00011197,2]
[361093561,1747251043887,-400.0,0.00011197,2]
[361093562,1747251043897,-408.17143434,0.00011197,2]
[361093563,1747251043907,-400.0,0.00011197,2]
[361093564,1747251043916,-728.42,0.00011197,2]
[361093565,1747251043926,-1201.56,0.00011197,2]
[361093566,1747251043936,-400.0,0.00011197,2]
[361093567,1747251043945,-400.0,0.00011197,2]
[361093568,1747251043955,-400.0,0.00011197,2]
[361093569,1747251043964,-513.47,0.00011197,2]
[361093570,1747251043974,-450.0,0.00011197,2]
[361093571,1747251043983,-450.0,0.00011197,2]
[361093572,1747251043993,-441.27,0.00011197,2]
[361093573,1747251044003,-500.0,0.00011197,2]
[361093574,1747251044013,-400.0,0.00011197,2]
[361093575,1747251044022,-400.0,0.00011197,2]
[361093576,1747251044031,-400.0,0.00011197,2]
[361093577,1747251044041,-400.0,0.00011197,2]
[361093578,1747251044051,-462.42,0.00011197,2]
[361093579,1747251044060,-450.0,0.00011197,2]
[361093580,1747251044069,-400.0,0.00011197,2]
[361093581,1747251044079,-500.0,0.00011197,2]
[361093582,1747251044088,-400.0,0.00011197,2]
[361093583,1747251044097,-4908.87,0.00011197,2]
[361093584,1747251044108,-450.0,0.00011197,2]
[361093585,1747251044117,-400.0,0.00011197,2]
[361093586,1747251044126,-450.0,0.00011197,2]
[361093587,1747251044135,-400.0,0.00011197,2]
[361093588,1747251044145,-400.0,0.00011197,2]
[361093589,1747251044155,-450.0,0.00011197,2]
[361093590,1747251044164,-450.0,0.00011197,2]
[361093591,1747251044173,-1627.8,0.00011197,2]
[361093592,1747251044182,-400.0,0.00011197,2]
[361093593,1747251044191,-400.0,0.00011197,2]
[361093594,1747251044201,-450.0,0.00011197,2]
[361093595,1747251044211,-544.58,0.00011197,2]
[361093596,1747251044222,-161.87051353,0.00011197,2]
[361093597,1747251044231,-400.0,0.00011197,2]
[361093598,1747251044240,-458.91483997,0.00011197,2]
[361093599,1747251044250,-1399.33,0.00011197,2]
[361093600,1747251044259,-400.0,0.00011197,2]
[361093601,1747251044270,-522.94,0.00011197,2]
[361093602,1747251044279,-510.72,0.00011197,2]
[361093603,1747251044288,-1240.53,0.00011197,2]
[361093604,1747251044298,-406.38578271,0.00011197,2]
[361093605,1747251044310,-400.0,0.00011197,2]
[361093606,1747251044319,-450.0,0.00011197,2]
[361093607,1747251044330,-400.0,0.00011197,2]
[361093608,1747251044340,-228.39530369,0.00011197,2]
[361093609,1747251044350,-406.35102668,0.00011197,2]
[361093610,1747251044360,-856.82,0.00011197,2]
[361093611,1747251044370,-400.0,0.00011197,2]
[361093612,1747251044381,-450.0,0.00011197,2]
[361093613,1747251044391,-11212.11,0.00011197,2]
[361093614,1747251044401,-8629.66,0.00011197,2]
[361093615,1747251044412,-353.79912346,0.00011197,2]
[361093616,1747251044421,-400.0,0.00011197,2]
[361093617,1747251044432,-400.0,0.00011197,2]
[361093618,1747251044441,-400.0,0.00011197,2]
[361093619,1747251044451,-400.0,0.00011197,2]
[361093620,1747251044463,-499.49,0.00011197,2]
[361093621,1747251044472,-1151.55,0.00011197,2]
[361093622,1747251044481,-400.0,0.00011197,2]
[361093623,1747251044490,-400.0,0.00011197,2]
[361093624,1747251044500,-450.0,0.00011197,2]
[361093625,1747251044510,-400.0,0.00011197,2]
[361093626,1747251044520,-400.0,0.00011197,2]
[361093627,1747251044530,-400.0,0.00011197,2]
[361093628,1747251044542,-400.0,0.00011197,2]
[361093629,1747251044552,-450.0,0.00011197,2]
[361093630,1747251044562,-2258.56,0.00011197,2]
[361093631,1747251044572,-856.1,0.00011197,2]
[361093632,1747251044582,-450.0,0.00011197,2]
[361093633,1747251044592,-400.0,0.00011197,2]
[361093634,1747251044602,-400.0,0.00011197,2]
[361093635,1747251044797,-1825.99,0.00011197,2]
[361093636,1747251044833,-401.63035676,0.00011197,2]
[361093637,1747251044842,-400.0,0.00011197,2]
[361093638,1747251044851,-400.0,0.00011197,2]
[361093639,1747251044861,-450.0,0.00011197,2]
[361093640,1747251044870,-400.0,0.00011197,2]
[361093641,1747251044880,-400.0,0.00011197,2]
[361093642,1747251044890,-400.0,0.00011197,2]
[361093643,1747251044899,-400.0,0.00011197,2]
[361093644,1747251044908,-400.0,0.00011197,2]
[361093645,1747251044918,-488.89,0.00011197,2]
[361093646,1747251044929,-450.0,0.00011197,2]
[361093647,1747251044938,-400.0,0.00011197,2]
[361093648,1747251044947,-400.0,0.00011197,2]
[361093649,1747251044957,-575.32,0.00011197,2]
[361093650,1747251044966,-400.0,0.00011197,2]
[361093651,1747251044975,-450.0,0.00011197,2]
[361093652,1747251044984,-578.76,0.00011197,2]
[361093653,1747251044994,-450.0,0.00011197,2]
[361093654,1747251045003,-1459.0,0.00011197,2]
[361093655,1747251045012,-450.0,0.00011197,2]
[361093656,1747251045021,-494.56256052,0.00011197,2]
[361093657,1747251045032,-400.0,0.00011197,2]
[361093658,1747251045042,-2374.96,0.00011197,2]
[361093659,1747251045052,-400.0,0.00011197,2]
[361093660,1747251045061,-1083.07,0.00011197,2]
[361093661,1747251045071,-400.0,0.00011197,2]
[361093662,1747251045080,-450.0,0.00011197,2]
[361093663,1747251045090,-999.09,0.00011197,2]
[361093664,1747251045100,-400.0,0.00011197,2]
[361093665,1747251045109,-400.0,0.00011197,2]
[361093666,1747251045119,-400.0,0.00011197,2]
[361093667,1747251045129,-400.0,0.00011197,2]
[361093668,1747251045140,-620.11,0.00011197,2]
[361093669,1747251045151,-826.99,0.00011197,2]
[361093670,1747251045161,-400.0,0.00011197,2]
[361093671,1747251045170,-450.0,0.00011197,2]
[361093672,1747251045181,-400.0,0.00011197,2]
[361093673,1747251045191,-400.0,0.00011197,2]
[361093674,1747251045200,-212.55021128,0.00011197,2]
[361093675,1747251045210,-400.0,0.00011197,2]
[361093676,1747251045220,-400.0,0.00011197,2]
[361093677,1747251045229,-400.0,0.00011197,2]
[361093678,1747251045237,-400.0,0.00011197,2]
[361093679,1747251045247,-400.0,0.00011197,2]
[361093680,1747251045256,-197.47587168,0.00011197,2]
[361093681,1747251045266,-400.0,0.00011197,2]
[361093682,1747251045275,-400.0,0.00011197,2]
[361093683,1747251045285,-5714.8,0.00011197,2]
[361093684,1747251045294,-400.0,0.00011197,2]
[361093686,1747251045303,-450.0,0.00011197,2]
[361093689,1747251045312,-481.57,0.00011197,2]
[361093691,1747251045321,-450.0,0.00011197,2]
[361093692,1747251045330,-400.0,0.00011197,2]
[361093693,1747251045339,-508.52,0.00011197,2]
[361093694,1747251045347,-400.0,0.00011197,2]
[361093695,1747251045357,-450.0,0.00011197,2]
[361093696,1747251045366,-4186.14,0.00011197,2]
[361093697,1747251045375,-472.96,0.00011197,2]
[361093698,1747251045384,-5184.38,0.00011197,2]
[361093699,1747251045393,-400.0,0.00011197,2]
[361093700,1747251045403,-400.0,0.00011197,2]
[361093701,1747251045412,-400.0,0.00011197,2]
[361093702,1747251045421,-1897.27,0.00011197,2]
[361093703,1747251045430,-15537.23,0.00011197,2]
[361093704,1747251045439,-437.6,0.00011197,2]
[361093705,1747251045449,-400.0,0.00011197,2]
[361093706,1747251045460,-400.0,0.00011197,2]
[361093707,1747251045470,-400.0,0.00011197,2]
[361093708,1747251045479,-41.06962443,0.00011197,2]
[361093709,1747251045905,-358.93037557,0.00011197,2]
[361093710,1747251045915,-400.0,0.00011197,2]
[361093711,1747251045924,-400.0,0.00011197,2]
[361093712,1747251045934,-400.0,0.00011197,2]
[361093713,1747251045943,-451.06962443,0.00011197,2]
[361093714,1747251045993,-145.06037557,0.00011197,2]
[361093715,1747251046002,-637.23,0.00011197,2]
[361093716,1747251046011,-554.99,0.00011197,2]
[361093717,1747251046020,-400.0,0.00011197,2]
[361093718,1747251046030,-400.0,0.00011197,2]
[361093720,1747251046039,-450.0,0.00011197,2]
[361093722,1747251046048,-400.0,0.00011197,2]
[361093724,1747251046057,-400.0,0.00011197,2]
[361093726,1747251046067,-3476.23,0.00011197,2]
[361093728,1747251046076,-520.70983848,0.00011197,2]
[361093730,1747251046086,-500.0,0.00011197,2]
[361093732,1747251046095,-400.0,0.00011197,2]
[361093734,1747251046106,-566.01,0.00011197,2]
[361093735,1747251046115,-400.0,0.00011197,2]
[361093736,1747251046125,-400.0,0.00011197,2]
[361093737,1747251046134,-473.38,0.00011197,2]
[361093738,1747251046143,-11868.59,0.00011197,2]
[361093739,1747251046153,-400.0,0.00011197,2]
[361093740,1747251046162,-400.0,0.00011197,2]
[361093741,1747251046172,-970.57,0.00011197,2]
[361093742,1747251046181,-444.19,0.00011197,2]
[361093743,1747251046190,-506.39539064,0.00011197,2]
[361093744,1747251046200,-400.0,0.00011197,2]
[361093745,1747251046209,-400.0,0.00011197,2]
[361093746,1747251046218,-825.97,0.00011197,2]
[361093747,1747251046228,-400.0,0.00011197,2]
[361093748,1747251046237,-400.0,0.00011197,2]
[361093749,1747251046246,-400.0,0.00011197,2]
[361093750,1747251046255,-689.16,0.00011197,2]
[361093751,1747251046264,-390.16693287,0.00011197,2]
[361093753,1747251046274,-400.0,0.00011197,2]
[361093755,1747251046283,-400.0,0.00011197,2]
[361093757,1747251046293,-400.0,0.00011197,2]
[361093759,1747251046307,-400.0,0.00011197,2]
[361093761,1747251046317,-400.0,0.00011197,2]
[361093763,1747251046326,-400.0,0.00011197,2]
[361093765,1747251046336,-1076.01,0.00011197,2]
[361093768,1747251046345,-400.0,0.00011197,2]
[361093769,1747251046355,-400.0,0.00011197,2]
[361093771,1747251046364,-400.0,0.00011197,2]
[361093772,1747251046373,-589.64,0.00011197,2]
[361093773,1747251046383,-1540.49,0.00011197,2]
[361093774,1747251046392,-867.32,0.00011197,2]
[361093775,1747251046401,-400.0,0.00011197,2]
[361093776,1747251046411,-592.43,0.00011197,2]
[361093777,1747251046421,-400.0,0.00011197,2]
[361093778,1747251046433,-457.98,0.00011197,2]
[361093779,1747251046442,-400.0,0.00011197,2]
[361093780,1747251046452,-400.0,0.00011197,2]
[361093781,1747251046463,-1000.0,0.00011197,2]
[361093782,1747251046472,-400.0,0.00011197,2]
[361093783,1747251046482,-400.0,0.00011197,2]
[361093784,1747251046492,-400.0,0.00011197,2]
[361093785,1747251046503,-454.49168778,0.00011197,2]
[361093786,1747251046512,-400.0,0.00011197,2]
[361093787,1747251046522,-439.0,0.00011197,2]
[361093788,1747251046531,-400.0,0.00011197,2]
[361093789,1747251046541,-400.0,0.00011197,2]
[361093790,1747251046551,-400.0,0.00011197,2]
[361093791,1747251046560,-400.0,0.00011197,2]
[361093792,1747251046569,-901.43,0.00011197,2]
[361093793,1747251046579,-400.0,0.00011197,2]
[361093794,1747251046588,-450.0,0.00011197,2]
[361093795,1747251046598,-400.0,0.00011197,2]
[361093796,1747251046609,-400.0,0.00011197,2]
[361093797,1747251046619,-400.0,0.00011197,2]
[361093798,1747251046628,-450.0,0.00011197,2]
[361093799,1747251046638,-542.03,0.00011197,2]
[361093800,1747251046649,-400.0,0.00011197,2]
[361093801,1747251046658,-457.82,0.00011197,2]
[361093802,1747251046667,-400.0,0.00011197,2]
[361093803,1747251046676,-450.0,0.00011197,2]
[361093804,1747251046686,-400.0,0.00011197,2]
[361093805,1747251046695,-457.85,0.00011197,2]
[361093806,1747251046705,-400.0,0.00011197,2]
[361093807,1747251046715,-400.0,0.00011197,2]
[361093808,1747251046724,-469.85577467,0.00011197,2]
[361093809,1747251047316,-400.0,0.00011196,2]
[361093810,1747251047326,-116.99230662,0.00011196,2]
[361093811,1747251047362,-333.00769338,0.00011196,2]
[361093812,1747251047371,-715.11,0.00011196,2]
[361093813,1747251047383,-544.90536706,0.00011196,2]
[361093814,1747251047393,-187.64488125,0.00011196,2]
[361093815,1747251047402,-400.0,0.00011196,2]
[361093816,1747251047412,-400.0,0.00011196,2]
[361093817,1747251047422,-2436.94311321,0.00011197,2]
[361093818,1747251047431,-400.0,0.00011197,2]
[361093819,1747251047440,-1130.05,0.00011197,2]
[361093820,1747251047451,-400.0,0.00011197,2]
[361093821,1747251047464,-400.0,0.00011197,2]
[361093822,1747251047475,-400.0,0.00011197,2]
[361093823,1747251047484,-400.0,0.00011197,2]
[361093824,1747251047494,-400.0,0.00011197,2]
[361093825,1747251047503,-400.0,0.00011197,2]
[361093826,1747251047513,-400.0,0.00011197,2]
[361093827,1747251047522,-501.45,0.00011197,2]
[361093828,1747251047531,-400.0,0.00011197,2]
[361093829,1747251047541,-400.0,0.00011198,2]
[361093830,1747251047551,-400.0,0.00011198,2]
[361093831,1747251047560,-400.0,0.00011198,2]
[361093832,1747251047569,-463.66,0.00011198,2]
[361093833,1747251047579,-400.0,0.00011198,2]
[361093834,1747251047588,-400.0,0.00011198,2]
[361093835,1747251047598,-400.0,0.00011198,2]
[361093836,1747251047607,-400.0,0.00011198,2]
[361093837,1747251047617,-400.0,0.00011198,2]
[361093838,1747251047626,-2669.85,0.00011198,2]
[361093839,1747251047635,-400.0,0.00011198,2]
[361093840,1747251047645,-400.0,0.00011198,2]
[361093841,1747251047655,-702.63,0.00011198,2]
[361093842,1747251047665,-400.0,0.00011198,2]
[361093843,1747251047675,-458.35,0.00011198,2]
[361093844,1747251047684,-400.0,0.00011198,2]
[361093845,1747251047693,-400.0,0.00011198,2]
[361093846,1747251047703,-585.56,0.00011198,2]
[361093847,1747251047712,-465.01,0.00011198,2]
[361093848,1747251047722,-400.0,0.00011198,2]
[361093849,1747251047731,-400.0,0.00011198,2]
[361093850,1747251047740,-400.0,0.00011198,2]
[361093851,1747251047749,-400.0,0.00011198,2]
[361093852,1747251047759,-1727.56,0.00011198,2]
[361093853,1747251047768,-400.0,0.00011198,2]
[361093854,1747251047778,-938.49,0.00011198,2]
[361093855,1747251047787,-400.0,0.00011198,2]
[361093856,1747251047796,-715.05,0.00011198,2]
[361093857,1747251047806,-400.0,0.00011198,2]
[361093858,1747251047816,-400.0,0.00011198,2]
[361093859,1747251047825,-400.0,0.00011198,2]
[361093860,1747251047834,-400.0,0.00011198,2]
[361093861,1747251047843,-400.0,0.00011198,2]
[361093862,1747251047852,-400.0,0.00011198,2]
[361093863,1747251047863,-1482.02,0.00011198,2]
[361093864,1747251047872,-400.0,0.00011198,2]
[361093865,1747251047881,-400.0,0.00011198,2]
[361093866,1747251047891,-1515.2,0.00011198,2]
[361093867,1747251047899,-400.0,0.00011198,2]
[361093868,1747251047906,-400.0,0.00011198,2]
[361093869,1747251047912,-400.0,0.00011198,2]
[361093870,1747251047918,-400.0,0.00011198,2]
[361093871,1747251047926,-400.0,0.00011198,2]
[361093872,1747251047934,-400.0,0.00011198,2]
[361093873,1747251047943,-474.21,0.00011198,2]
[361093874,1747251047951,-442.9,0.00011198,2]
[361093875,1747251047960,-400.0,0.00011198,2]
[361093876,1747251047969,-483.71,0.00011198,2]
[361093877,1747251047978,-413.42,0.00011198,2]
[361093878,1747251047988,-451.28,0.00011198,2]
[361093879,1747251047997,-928.22,0.00011198,2]
[361093880,1747251048006,-626.28,0.00011198,2]
[361093881,1747251048016,-419.74,0.00011198,2]
[361093882,1747251048025,-400.0,0.00011198,2]
[361093883,1747251048034,-400.0,0.00011198,2]
[361093884,1747251048043,-491.38,0.00011198,2]
[361093885,1747251048052,-400.0,0.00011198,2]
[361093886,1747251048062,-400.0,0.00011198,2]
[361093887,1747251048071,-400.0,0.00011198,2]
[361093888,1747251048080,-400.0,0.00011198,2]
[361093889,1747251048089,-400.0,0.00011198,2]
[361093890,1747251048098,-713.11,0.00011198,2]
[361093891,1747251048108,-961.85,0.00011198,2]
[361093892,1747251048117,-400.0,0.00011198,2]
[361093893,1747251048126,-400.0,0.00011198,2]
[361093894,1747251048135,-640.37,0.00011198,2]
[361093895,1747251048144,-400.0,0.00011198,2]
[361093896,1747251048153,-488.4,0.00011198,2]
[361093897,1747251048162,-400.0,0.00011198,2]
[361093898,1747251048172,-400.0,0.00011198,2]
[361093899,1747251048181,-785.62,0.00011198,2]
[361093900,1747251048190,-200.0,0.00011198,2]
[361093901,1747251048200,-250.0,0.00011198,2]
[361093902,1747251048209,-400.0,0.00011199,2]
[361093903,1747251048218,-400.0,0.00011199,2]
[361093904,1747251048228,-400.0,0.00011199,2]
[361093905,1747251048237,-393.0,0.00011199,2]
[361093906,1747251048247,-400.0,0.00011199,2]
[361093907,1747251048256,-400.0,0.00011199,2]
[361093908,1747251048265,-400.0,0.00011199,2]
[361093909,1747251048274,-400.0,0.00011199,2]
[361093910,1747251048283,-400.0,0.00011199,2]
[361093911,1747251048292,-400.0,0.00011199,2]
[361093912,1747251048301,-400.0,0.00011199,2]
[361093913,1747251048310,-400.0,0.00011199,2]
[361093914,1747251048319,-400.0,0.00011199,2]
[361093915,1747251048328,-400.0,0.00011199,2]
[361093916,1747251048337,-400.0,0.00011199,2]
[361093917,1747251048346,-400.0,0.00011199,2]
[361093918,1747251048358,-400.0,0.00011199,2]
[361093919,1747251048367,-400.0,0.00011199,2]
[361093920,1747251048377,-400.0,0.00011199,2]
[361093921,1747251048387,-400.0,0.00011199,2]
[361093922,1747251048396,-400.0,0.00011199,2]
[361093923,1747251048406,-151.0,0.000112,2]
[361093924,1747251048415,-151.0,0.000112,2]
[361093925,1747251048425,-151.0,0.000112,2]
[361093926,1747251048434,-151.0,0.000112,2]
[361093927,1747251048444,-200.0,0.00011207,2]
[361093928,1747251048454,-151.0,0.00011219,2]
[361093929,1747251048465,-151.0,0.00011219,2]
[361093930,1747251048475,-151.0,0.0001122,2]
[361093931,1747251048484,-182.302,0.00011225,2]
[361093932,1747251048494,-2142.521,0.00011225,2]
[361093933,1747251048504,-416.86,0.00011233,2]
[361093934,1747251048514,-5324.89785192,0.00011249,2]
[361093935,1747251049265,-1000.0,0.0001119,2]
[361093936,1747251049275,-450.0,0.00011196,2]
[361093937,1747251049286,-400.0,0.00011196,2]
[361093938,1747251049296,-400.0,0.00011196,2]
[361093939,1747251049306,-400.15,0.00011196,2]
[361093940,1747251049317,-400.0,0.00011196,2]
[361093941,1747251049326,-450.0,0.00011196,2]
[361093942,1747251049335,-450.0,0.00011196,2]
[361093943,1747251049344,-400.0,0.00011197,2]
[361093944,1747251049355,-400.0,0.00011197,2]
[361093945,1747251049367,-3369.85,0.00011249,2]
[361093946,1747251049430,-400.0,0.00011197,2]
[361093947,1747251049442,-400.0,0.00011197,2]
[361093948,1747251049453,-1020.86826392,0.00011249,2]
[361093949,1747251049466,-134.68173608,0.00011249,2]
[361093950,1747251055503,450.0,0.0001,2]
[361093951,1747251438914,150.0,0.00010337,7]
[361093963,1747252237800,-365.00066077,0.00010239,2]
[361093968,1747252239775,-634.99933923,0.00010239,2]
[361093969,1747252239785,-163.43566077,0.00010273,2]
[361093970,1747252239797,-16.23433923,0.00010273,2]
[361093971,1747252239806,-500.0,0.00010293,2]
[361093972,1747252239816,-1.01566077,0.00010358,2]
[361093973,1747252239905,-197.60433923,0.00010358,2]
[361093974,1747252239915,-2400.0,0.000107,3]
[361093975,1747252239925,-1200.0,0.00010799,2]
[361093976,1747252239934,-4800.0,0.000108,3]
[361093977,1747252239944,-300.0,0.00010899,2]
[361093978,1747252239954,-7200.0,0.000109,3]
[361093979,1747252239964,-500.0,0.00010986,2]
[361093980,1747252239973,-1223.0,0.00011,2]
[361093981,1747252239983,-472.00324308,0.00011095,2]
[361093982,1747252239992,-207.5298998,0.00011095,2]
[361093983,1747252240002,-788.35,0.00011095,2]
[361093984,1747252240011,-1252.1763,0.00011097,2]
[361093985,1747252240021,-8850.10763617,0.00011099,2]
[361093986,1747252240030,-947.47518921,0.0001114,2]
[361093987,1747252240039,-218.66217265,0.00011141,2]
[361093988,1747252240049,-207.4,0.00011166,2]
[361093989,1747252240058,-500.78416614,0.00011173,2]
[361093990,1747252240068,-500.0,0.00011173,2]
[361093991,1747252240077,-500.0,0.00011173,2]
[361093992,1747252240086,-500.0,0.00011173,2]
[361093993,1747252240096,-500.0,0.00011173,2]
[361093994,1747252240105,-632.83391156,0.00011173,2]
[361093995,1747252240114,-248.35000863,0.00011194,2]
[361093996,1747252240124,-400.0,0.00011194,2]
[361093997,1747252240133,-400.0,0.00011194,2]
[361093998,1747252240143,-400.0,0.00011194,2]
[361093999,1747252240157,-523.99659686,0.00011194,2]
[361094000,1747252240167,-400.0,0.00011194,2]
[361094001,1747252240177,-450.0,0.00011194,2]
[361094002,1747252240186,-459.60157457,0.00011194,2]
[361094003,1747252240196,-159.25681685,0.00011194,2]
[361094004,1747252240206,-450.0,0.00011194,2]
[361094005,1747252240215,-400.0,0.00011194,2]
[361094006,1747252240225,-450.0,0.00011194,2]
[361094007,1747252240234,-450.0,0.00011194,2]
[361094008,1747252240244,-450.0,0.00011194,2]
[361094009,1747252240253,-400.0,0.00011194,2]
[361094010,1747252240263,-450.0,0.00011194,2]
[361094011,1747252240272,-541.4667408,0.00011194,2]
[361094012,1747252240282,-450.0,0.00011194,2]
[361094013,1747252240291,-450.5945147,0.00011194,2]
[361094014,1747252240301,-450.0,0.00011194,2]
[361094015,1747252240310,-400.0,0.00011194,2]
[361094016,1747252240320,-450.0,0.00011194,2]
[361094017,1747252240330,-400.0,0.00011194,2]
[361094018,1747252240339,-340.42,0.00011194,2]
[361094019,1747252240348,-523.1806734,0.00011194,2]
[361094020,1747252240358,-450.0,0.00011194,2]
[361094021,1747252240368,-400.0,0.00011194,2]
[361094022,1747252240377,-400.0,0.00011194,2]
[361094023,1747252240387,-400.0,0.00011194,2]
[361094024,1747252240396,-450.0,0.00011194,2]
[361094025,1747252240405,-161.29932098,0.00011194,2]
[361094026,1747252240415,-450.0,0.00011194,2]
[361094027,1747252240425,-450.0,0.00011194,2]
[361094028,1747252240435,-400.0,0.00011194,2]
[361094029,1747252240444,-450.0,0.00011194,2]
[361094030,1747252240454,-450.0,0.00011194,2]
[361094031,1747252240464,-450.0,0.00011194,2]
[361094032,1747252240473,-450.0,0.00011194,2]
[361094033,1747252240483,-450.0,0.00011194,2]
[361094034,1747252240493,-450.0,0.00011194,2]
[361094035,1747252240503,-450.0,0.00011194,2]
[361094036,1747252240513,-450.0,0.00011194,2]
[361094037,1747252240522,-450.0,0.00011194,2]
[361094038,1747252240532,-400.0,0.00011194,2]
[361094039,1747252240541,-450.0,0.00011194,2]
[361094040,1747252240551,-450.0,0.00011194,2]
[361094041,1747252240560,-450.0,0.00011194,2]
[361094042,1747252240569,-450.0,0.00011194,2]
[361094043,1747252240578,-400.0,0.00011194,2]
[361094044,1747252240588,-450.0,0.00011194,2]
[361094045,1747252240597,-400.0,0.00011194,2]
[361094046,1747252240607,-400.0,0.00011194,2]
[361094047,1747252240617,-450.0,0.00011194,2]
[361094048,1747252240627,-450.0,0.00011194,2]
[361094049,1747252240637,-450.0,0.00011194,2]
[361094050,1747252240646,-400.0,0.00011194,2]
[361094051,1747252240656,-450.0,0.00011194,2]
[361094052,1747252240665,-450.0,0.00011194,2]
[361094053,1747252240674,-450.0,0.00011194,2]
[361094054,1747252240684,-450.0,0.00011194,2]
[361094055,1747252240694,-450.0,0.00011194,2]
[361094056,1747252240703,-450.0,0.00011194,2]
[361094057,1747252240712,-450.0,0.00011194,2]
[361094058,1747252240722,-450.0,0.00011194,2]
[361094059,1747252240732,-450.0,0.00011194,2]
[361094060,1747252240741,-400.0,0.00011194,2]
[361094061,1747252240751,-450.0,0.00011194,2]
[361094062,1747252240761,-400.0,0.00011194,2]